[Event "Titled Tuesday Blitz March 21 Early 2023"]
[White "Mitrabha, Guha"]
[Black "Loiacono, Antonio"]
[WhiteFideId "5057000"]
[BlackFideId "895415"]
[WhiteElo "2507"]
[BlackElo "2257"]
[Result "1-0"]
[Round "02"]
[TimeControl "180+2"]
[Date "2023.03.21"]
[WhiteClock "0:00:22"]
[BlackClock "0:00:11"]

1. b3 {[%clk 0:02:34]}  d5 {[%clk 0:02:58]} 2. Bb2 {[%clk 0:02:35]}  Bg4 {[%clk 0:02:58]} 3. f3 {[%clk 0:02:35]}  Bh5 {[%clk 0:02:58]} 4. Nh3 {[%clk 0:02:35]}  f6 {[%clk 0:02:41]} 5. d4 {[%clk 0:02:31]}  e6 {[%clk 0:02:31]} 6. Nc3 {[%clk 0:02:28]}  c6 {[%clk 0:02:30]} 7. Qd2 {[%clk 0:02:28]}  Bd6 {[%clk 0:02:23]} 8. e4 {[%clk 0:02:27]}  Ne7 {[%clk 0:02:19]} 9. Bd3 {[%clk 0:02:28]}  Nd7 {[%clk 0:02:15]} 10. O-O {[%clk 0:02:22]}  Qc7 {[%clk 0:02:13]} 11. f4 {[%clk 0:02:20]}  O-O-O {[%clk 0:01:56]} 12. e5 {[%clk 0:02:18]}  Bb4 {[%clk 0:01:54]} 13. a3 {[%clk 0:02:18]}  Bxc3 {[%clk 0:01:52]} 14. Bxc3 {[%clk 0:02:18]}  Bg4 {[%clk 0:01:46]} 15. Nf2 {[%clk 0:02:08]}  Bf5 {[%clk 0:01:46]} 16. Be2 {[%clk 0:02:08]}  fxe5 {[%clk 0:01:37]} 17. fxe5 {[%clk 0:02:07]}  c5 {[%clk 0:01:28]} 18. Ba5 {[%clk 0:02:00]}  b6 {[%clk 0:01:27]} 19. Bc3 {[%clk 0:02:00]}  Kb8 {[%clk 0:01:24]} 20. a4 {[%clk 0:02:01]}  a5 {[%clk 0:01:22]} 21. dxc5 {[%clk 0:01:59]}  Nxc5 {[%clk 0:01:22]} 22. b4 {[%clk 0:01:57]}  axb4 {[%clk 0:01:20]} 23. Bxb4 {[%clk 0:01:58]}  Nc6 {[%clk 0:01:18]} 24. a5 {[%clk 0:01:55]}  Ne4 {[%clk 0:00:56]} 25. Nxe4 {[%clk 0:01:50]}  Bxe4 {[%clk 0:00:57]} 26. Rfb1 {[%clk 0:01:48]}  Kc8 {[%clk 0:00:54]} 27. Bd6 {[%clk 0:01:47]}  Rxd6 {[%clk 0:00:51]} 28. axb6 {[%clk 0:01:47]}  Qb8 {[%clk 0:00:49]} 29. exd6 {[%clk 0:01:42]}  Qxd6 {[%clk 0:00:49]} 30. b7+ {[%clk 0:01:42]}  Kc7 {[%clk 0:00:48]} 31. Ra6 {[%clk 0:01:42]}  Qc5+ {[%clk 0:00:46]} 32. Kh1 {[%clk 0:01:43]}  Rb8 {[%clk 0:00:45]} 33. Qg5 {[%clk 0:01:12]}  Bg6 {[%clk 0:00:33]} 34. Bd3 {[%clk 0:00:47]}  Rxb7 {[%clk 0:00:31]} 35. Rxb7+ {[%clk 0:00:46]}  Kxb7 {[%clk 0:00:31]} 36. Ra1 {[%clk 0:00:46]}  Ne7 {[%clk 0:00:20]} 37. Rb1+ {[%clk 0:00:45]}  Kc7 {[%clk 0:00:20]} 38. Qe5+ {[%clk 0:00:46]}  Kc8 {[%clk 0:00:19]} 39. Qxe6+ {[%clk 0:00:43]}  Kd8 {[%clk 0:00:17]} 40. Rb7 {[%clk 0:00:32]}  Bf5 {[%clk 0:00:11]} 41. Bxf5 {[%clk 0:00:22]} 1-0


[Site "https://www.chess.com"]

[Event "Titled Tuesday Blitz March 21 Early 2023"]
[White "Svane, Frederik"]
[Black "Lukiyanchuk, Vladislav"]
[WhiteFideId "12923044"]
[BlackFideId "14127113"]
[WhiteElo "2502"]
[BlackElo "2345"]
[Result "1-0"]
[Round "02"]
[TimeControl "180+2"]
[Date "2023.03.21"]
[WhiteClock "0:00:37"]
[BlackClock "0:00:05"]

1. b3 {[%clk 0:03:00]}  Nc6 {[%clk 0:02:58]} 2. Bb2 {[%clk 0:03:01]}  d5 {[%clk 0:02:58]} 3. e3 {[%clk 0:02:55]}  a6 {[%clk 0:02:50]} 4. Nf3 {[%clk 0:02:55]}  Bf5 {[%clk 0:02:49]} 5. Nh4 {[%clk 0:02:47]}  Bg6 {[%clk 0:02:49]} 6. d4 {[%clk 0:02:42]}  e6 {[%clk 0:02:45]} 7. Nxg6 {[%clk 0:02:43]}  hxg6 {[%clk 0:02:45]} 8. Be2 {[%clk 0:02:44]}  Bd6 {[%clk 0:02:44]} 9. h3 {[%clk 0:02:44]}  f5 {[%clk 0:02:38]} 10. c4 {[%clk 0:02:41]}  Nf6 {[%clk 0:02:38]} 11. Nc3 {[%clk 0:02:42]}  g5 {[%clk 0:02:30]} 12. Qc2 {[%clk 0:02:31]}  g4 {[%clk 0:02:25]} 13. a3 {[%clk 0:02:28]}  gxh3 {[%clk 0:02:06]} 14. cxd5 {[%clk 0:02:15]}  exd5 {[%clk 0:02:03]} 15. Qxf5 {[%clk 0:02:10]}  Ne7 {[%clk 0:02:02]} 16. Qf3 {[%clk 0:02:00]}  h2 {[%clk 0:01:51]} 17. g3 {[%clk 0:01:53]}  Qd7 {[%clk 0:01:24]} 18. Qg2 {[%clk 0:01:53]}  Qh3 {[%clk 0:01:20]} 19. Qxh3 {[%clk 0:01:54]}  Rxh3 {[%clk 0:01:21]} 20. Kf1 {[%clk 0:01:54]}  Kf7 {[%clk 0:01:13]} 21. Kg2 {[%clk 0:01:54]}  Rah8 {[%clk 0:01:13]} 22. Bd3 {[%clk 0:01:39]}  g5 {[%clk 0:00:45]} 23. b4 {[%clk 0:01:32]}  c6 {[%clk 0:00:45]} 24. Raf1 {[%clk 0:01:23]}  Kg7 {[%clk 0:00:33]} 25. Bc1 {[%clk 0:01:23]}  Ng6 {[%clk 0:00:28]} 26. Bf5 {[%clk 0:01:18]}  R3h5 {[%clk 0:00:23]} 27. Bd2 {[%clk 0:01:07]}  g4 {[%clk 0:00:22]} 28. Bd3 {[%clk 0:01:03]}  Rh3 {[%clk 0:00:22]} 29. Rb1 {[%clk 0:00:57]}  Nh7 {[%clk 0:00:22]} 30. Ne2 {[%clk 0:00:50]}  Ng5 {[%clk 0:00:20]} 31. Bf5 {[%clk 0:00:51]}  Nf3 {[%clk 0:00:15]} 32. Bxg4 {[%clk 0:00:50]}  Ngh4+ {[%clk 0:00:05]} 33. gxh4 {[%clk 0:00:37]}  Nxh4+ {[%clk 0:00:05]} 34. Kxh3 {[%clk 0:00:37]} 1-0


[Site "https://www.chess.com"]

[Event "Titled Tuesday Blitz March 21 Early 2023"]
[White "Yelisieiev, Yevhenii"]
[Black "Vogel, Roven"]
[WhiteFideId "14139642"]
[BlackFideId "12908088"]
[WhiteElo "2447"]
[BlackElo "2518"]
[Result "0-1"]
[Round "02"]
[TimeControl "180+2"]
[Date "2023.03.21"]
[WhiteClock "0:00:04"]
[BlackClock "0:01:04"]

1. d4 {[%clk 0:03:00]}  Nf6 {[%clk 0:02:55]} 2. Nf3 {[%clk 0:03:01]}  e6 {[%clk 0:02:55]} 3. c4 {[%clk 0:03:00]}  b6 {[%clk 0:02:51]} 4. Qc2 {[%clk 0:02:57]}  Bb7 {[%clk 0:02:46]} 5. e3 {[%clk 0:02:57]}  c5 {[%clk 0:02:45]} 6. Nc3 {[%clk 0:02:56]}  cxd4 {[%clk 0:02:44]} 7. exd4 {[%clk 0:02:57]}  d5 {[%clk 0:02:44]} 8. cxd5 {[%clk 0:02:54]}  Nxd5 {[%clk 0:02:42]} 9. Bb5+ {[%clk 0:02:54]}  Bc6 {[%clk 0:02:40]} 10. Qa4 {[%clk 0:02:47]}  Bxb5 {[%clk 0:02:31]} 11. Nxb5 {[%clk 0:02:17]}  Nd7 {[%clk 0:02:27]} 12. Ne5 {[%clk 0:02:16]}  a6 {[%clk 0:02:26]} 13. Nc3 {[%clk 0:02:08]}  Nxc3 {[%clk 0:02:22]} 14. Qxd7+ {[%clk 0:01:53]}  Qxd7 {[%clk 0:02:22]} 15. Nxd7 {[%clk 0:01:53]}  Nd5 {[%clk 0:02:21]} 16. Ne5 {[%clk 0:01:52]}  f6 {[%clk 0:02:13]} 17. Nf3 {[%clk 0:01:47]}  Kd7 {[%clk 0:02:10]} 18. Be3 {[%clk 0:01:44]}  Bd6 {[%clk 0:02:06]} 19. Rc1 {[%clk 0:01:42]}  g5 {[%clk 0:02:06]} 20. Ke2 {[%clk 0:01:41]}  h5 {[%clk 0:02:04]} 21. g3 {[%clk 0:01:29]}  h4 {[%clk 0:02:01]} 22. Nd2 {[%clk 0:01:28]}  g4 {[%clk 0:01:54]} 23. Ne4 {[%clk 0:01:20]}  Be7 {[%clk 0:01:50]} 24. Nc3 {[%clk 0:01:20]}  Bd6 {[%clk 0:01:43]} 25. Nxd5 {[%clk 0:01:15]}  exd5 {[%clk 0:01:43]} 26. Kd3 {[%clk 0:01:04]}  f5 {[%clk 0:01:41]} 27. Rhe1 {[%clk 0:00:57]}  Rae8 {[%clk 0:01:39]} 28. Bg5 {[%clk 0:00:51]}  h3 {[%clk 0:01:33]} 29. Rxe8 {[%clk 0:00:44]}  Rxe8 {[%clk 0:01:32]} 30. Bd2 {[%clk 0:00:43]}  Re4 {[%clk 0:01:22]} 31. Re1 {[%clk 0:00:42]}  Rxe1 {[%clk 0:01:08]} 32. Bxe1 {[%clk 0:00:42]}  f4 {[%clk 0:01:09]} 33. Ke2 {[%clk 0:00:39]}  Ke6 {[%clk 0:01:06]} 34. Kd3 {[%clk 0:00:32]}  Kf5 {[%clk 0:01:06]} 35. a4 {[%clk 0:00:29]}  Bc7 {[%clk 0:01:05]} 36. b3 {[%clk 0:00:17]}  Bd6 {[%clk 0:01:05]} 37. f3 {[%clk 0:00:06]}  fxg3 {[%clk 0:01:04]} 38. fxg4+ {[%clk 0:00:03]}  Kxg4 {[%clk 0:01:04]} 39. hxg3 {[%clk 0:00:04]}  h2 {[%clk 0:01:04]} 0-1


[Site "https://www.chess.com"]

[Event "Titled Tuesday Blitz March 21 Early 2023"]
[White "Vasquez Schroeder, Rodrigo"]
[Black "Diaz Rosas, Julio Cesar"]
[WhiteFideId "3400042"]
[BlackFideId "5105099"]
[WhiteElo "2600"]
[BlackElo "2270"]
[Result "1-0"]
[Round "02"]
[TimeControl "180+2"]
[Date "2023.03.21"]
[WhiteClock "0:00:20"]
[BlackClock "0:00:04"]

1. d4 {[%clk 0:03:00]}  Nf6 {[%clk 0:02:59]} 2. c4 {[%clk 0:03:00]}  g6 {[%clk 0:02:58]} 3. g3 {[%clk 0:03:00]}  Bg7 {[%clk 0:02:58]} 4. Bg2 {[%clk 0:03:00]}  d5 {[%clk 0:02:58]} 5. cxd5 {[%clk 0:03:00]}  Nxd5 {[%clk 0:02:59]} 6. Nf3 {[%clk 0:03:00]}  O-O {[%clk 0:02:58]} 7. O-O {[%clk 0:03:01]}  Nb6 {[%clk 0:02:59]} 8. Nc3 {[%clk 0:03:01]}  Nc6 {[%clk 0:02:58]} 9. e3 {[%clk 0:03:01]}  a5 {[%clk 0:02:58]} 10. Nh4 {[%clk 0:02:48]}  a4 {[%clk 0:02:43]} 11. a3 {[%clk 0:02:45]}  Qe8 {[%clk 0:02:24]} 12. f4 {[%clk 0:02:43]}  Na5 {[%clk 0:02:21]} 13. Rb1 {[%clk 0:02:35]}  Nb3 {[%clk 0:02:17]} 14. Bd2 {[%clk 0:02:30]}  c5 {[%clk 0:02:12]} 15. dxc5 {[%clk 0:02:06]}  Nc4 {[%clk 0:01:43]} 16. Bc1 {[%clk 0:02:05]}  Nxa3 {[%clk 0:01:21]} 17. bxa3 {[%clk 0:02:03]}  Bxc3 {[%clk 0:01:19]} 18. Bb2 {[%clk 0:02:00]}  Bxb2 {[%clk 0:01:15]} 19. Rxb2 {[%clk 0:02:01]}  Qb5 {[%clk 0:01:10]} 20. Bd5 {[%clk 0:01:42]}  Qxc5 {[%clk 0:01:03]} 21. Bxb3 {[%clk 0:01:42]}  axb3 {[%clk 0:00:57]} 22. Rxb3 {[%clk 0:01:42]}  Rxa3 {[%clk 0:00:57]} 23. Rxa3 {[%clk 0:01:38]}  Qxa3 {[%clk 0:00:57]} 24. Qd2 {[%clk 0:01:38]}  Bg4 {[%clk 0:00:52]} 25. Rc1 {[%clk 0:01:34]}  Qa4 {[%clk 0:00:40]} 26. Rb1 {[%clk 0:01:10]}  Qe4 {[%clk 0:00:26]} 27. Rb4 {[%clk 0:01:07]}  Qc6 {[%clk 0:00:23]} 28. Ng2 {[%clk 0:00:58]}  Ra8 {[%clk 0:00:15]} 29. Rb1 {[%clk 0:00:56]}  Bf5 {[%clk 0:00:13]} 30. Rc1 {[%clk 0:00:56]}  Qe4 {[%clk 0:00:12]} 31. Ne1 {[%clk 0:00:55]}  Be6 {[%clk 0:00:11]} 32. Qd3 {[%clk 0:00:50]}  Bd5 {[%clk 0:00:11]} 33. Qxe4 {[%clk 0:00:47]}  Bxe4 {[%clk 0:00:12]} 34. Rc7 {[%clk 0:00:38]}  e6 {[%clk 0:00:11]} 35. Rc4 {[%clk 0:00:35]}  f5 {[%clk 0:00:10]} 36. Rb4 {[%clk 0:00:32]}  Ra1 {[%clk 0:00:08]} 37. Kf2 {[%clk 0:00:31]}  Ra2+ {[%clk 0:00:08]} 38. Kf1 {[%clk 0:00:31]}  Kf7 {[%clk 0:00:07]} 39. h4 {[%clk 0:00:28]}  Ke7 {[%clk 0:00:07]} 40. Rd4 {[%clk 0:00:27]}  Kf6 {[%clk 0:00:03]} 41. Nd3 {[%clk 0:00:26]}  Bxd3+ {[%clk 0:00:03]} 42. Rxd3 {[%clk 0:00:26]}  Ke7 {[%clk 0:00:02]} 43. Rb3 {[%clk 0:00:26]}  Ra7 {[%clk 0:00:02]} 44. Rb6 {[%clk 0:00:25]}  Kd7 {[%clk 0:00:02]} 45. Ke2 {[%clk 0:00:25]}  Ra2+ {[%clk 0:00:02]} 46. Kf3 {[%clk 0:00:26]}  Ra7 {[%clk 0:00:01]} 47. g4 {[%clk 0:00:25]}  Ke7 {[%clk 0:00:02]} 48. h5 {[%clk 0:00:24]}  Kf7 {[%clk 0:00:02]} 49. hxg6+ {[%clk 0:00:20]}  hxg6 {[%clk 0:00:02]} 50. gxf5 {[%clk 0:00:20]}  gxf5 {[%clk 0:00:03]} 51. e4 {[%clk 0:00:20]}  fxe4+ {[%clk 0:00:04]} 52. Kxe4 {[%clk 0:00:20]}  Ke7 {[%clk 0:00:04]} 53. Ke5 {[%clk 0:00:20]}  Ra5+ {[%clk 0:00:04]} 54. Ke4 {[%clk 0:00:20]}  Ra4+ {[%clk 0:00:04]} 55. Ke5 {[%clk 0:00:21]}  Ra7 {[%clk 0:00:05]} 56. Rxe6+ {[%clk 0:00:20]}  Kf7 {[%clk 0:00:05]} 57. Rb6 {[%clk 0:00:20]}  Ra5+ {[%clk 0:00:05]} 58. Ke4 {[%clk 0:00:20]}  Ra4+ {[%clk 0:00:06]} 59. Kf5 {[%clk 0:00:21]}  Ra5+ {[%clk 0:00:06]} 60. Kg4 {[%clk 0:00:21]}  Ra7 {[%clk 0:00:06]} 61. Kg5 {[%clk 0:00:21]}  Ra5+ {[%clk 0:00:06]} 62. f5 {[%clk 0:00:22]}  Ra7 {[%clk 0:00:06]} 63. Rh6 {[%clk 0:00:22]}  Kg7 {[%clk 0:00:06]} 64. f6+ {[%clk 0:00:21]}  Kg8 {[%clk 0:00:06]} 65. Kg6 {[%clk 0:00:21]}  b5 {[%clk 0:00:06]} 66. Rh5 {[%clk 0:00:20]}  b4 {[%clk 0:00:05]} 67. Rb5 {[%clk 0:00:20]}  Ra8 {[%clk 0:00:05]} 68. Rb7 {[%clk 0:00:20]}  Rc8 {[%clk 0:00:05]} 69. Rxb4 {[%clk 0:00:20]}  Ra8 {[%clk 0:00:04]} 70. Rh4 {[%clk 0:00:20]}  Rc8 {[%clk 0:00:03]} 71. f7+ {[%clk 0:00:19]}  Kf8 {[%clk 0:00:03]} 72. Rh8+ {[%clk 0:00:20]}  Ke7 {[%clk 0:00:04]} 73. Rxc8 {[%clk 0:00:20]} 1-0


[Site "https://www.chess.com"]

[Event "Titled Tuesday Blitz March 21 Early 2023"]
[White "Sokac, Marko"]
[Black "Kravtsiv, Martyn"]
[WhiteFideId "14531356"]
[BlackFideId "14113147"]
[WhiteElo "2355"]
[BlackElo "2695"]
[Result "0-1"]
[Round "02"]
[TimeControl "180+2"]
[Date "2023.03.21"]
[WhiteClock "0:00:49"]
[BlackClock "0:00:40"]

1. e4 {[%clk 0:03:00]}  c5 {[%clk 0:02:59]} 2. a3 {[%clk 0:03:01]}  d6 {[%clk 0:02:57]} 3. b4 {[%clk 0:03:01]}  Nf6 {[%clk 0:02:56]} 4. Nc3 {[%clk 0:03:01]}  g6 {[%clk 0:02:55]} 5. Bb2 {[%clk 0:03:02]}  Bg7 {[%clk 0:02:54]} 6. Rb1 {[%clk 0:03:02]}  O-O {[%clk 0:02:53]} 7. Nf3 {[%clk 0:03:02]}  b6 {[%clk 0:02:48]} 8. bxc5 {[%clk 0:03:01]}  dxc5 {[%clk 0:02:45]} 9. Bc4 {[%clk 0:02:58]}  Nc6 {[%clk 0:02:42]} 10. O-O {[%clk 0:02:57]}  Bg4 {[%clk 0:02:41]} 11. h3 {[%clk 0:02:55]}  Bxf3 {[%clk 0:02:40]} 12. Qxf3 {[%clk 0:02:56]}  Ne5 {[%clk 0:02:33]} 13. Qe2 {[%clk 0:02:56]}  Nh5 {[%clk 0:02:32]} 14. Bd5 {[%clk 0:02:20]}  Rb8 {[%clk 0:02:29]} 15. f4 {[%clk 0:02:18]}  Ng3 {[%clk 0:02:18]} 16. Qe1 {[%clk 0:01:59]}  Nxf1 {[%clk 0:02:18]} 17. fxe5 {[%clk 0:01:59]}  Nxd2 {[%clk 0:02:14]} 18. Qxd2 {[%clk 0:01:57]}  e6 {[%clk 0:02:14]} 19. Nb5 {[%clk 0:01:55]}  Qd7 {[%clk 0:01:56]} 20. c4 {[%clk 0:01:46]}  exd5 {[%clk 0:01:32]} 21. exd5 {[%clk 0:01:46]}  a6 {[%clk 0:01:32]} 22. Nd6 {[%clk 0:01:45]}  f6 {[%clk 0:01:32]} 23. exf6 {[%clk 0:01:35]}  Bxf6 {[%clk 0:01:28]} 24. Bxf6 {[%clk 0:01:35]}  Rxf6 {[%clk 0:01:28]} 25. Ne4 {[%clk 0:01:36]}  Rf5 {[%clk 0:01:26]} 26. Nxc5 {[%clk 0:01:35]}  Qc8 {[%clk 0:01:18]} 27. Ne4 {[%clk 0:01:14]}  Qxc4 {[%clk 0:01:14]} 28. Re1 {[%clk 0:01:15]}  Rbf8 {[%clk 0:01:06]} 29. d6 {[%clk 0:01:12]}  Rd5 {[%clk 0:01:04]} 30. Qh6 {[%clk 0:01:07]}  Qd4+ {[%clk 0:01:01]} 31. Kh1 {[%clk 0:01:05]}  Re5 {[%clk 0:00:44]} 32. d7 {[%clk 0:00:51]}  Qxd7 {[%clk 0:00:43]} 33. Nf6+ {[%clk 0:00:48]}  Rxf6 {[%clk 0:00:42]} 34. Rxe5 {[%clk 0:00:48]}  Qd1+ {[%clk 0:00:39]} 35. Kh2 {[%clk 0:00:49]}  Qd6 {[%clk 0:00:40]} 0-1


[Site "https://www.chess.com"]

[Event "Titled Tuesday Blitz March 21 Early 2023"]
[White "Ordekalog"]
[Black "Rustemov, Alexander"]
[BlackFideId "4119002"]
[WhiteElo "2591"]
[BlackElo "2864"]
[Result "0-1"]
[Round "02"]
[TimeControl "180+2"]
[Date "2023.03.21"]
[WhiteClock "0:00:30"]
[BlackClock "0:01:23"]

1. e4 {[%clk 0:03:00]}  e6 {[%clk 0:02:58]} 2. Bb5 {[%clk 0:02:59]}  a6 {[%clk 0:02:56]} 3. Ba4 {[%clk 0:02:58]}  b5 {[%clk 0:02:55]} 4. Bb3 {[%clk 0:02:58]}  c5 {[%clk 0:02:55]} 5. d3 {[%clk 0:02:58]}  Nc6 {[%clk 0:02:54]} 6. c3 {[%clk 0:02:56]}  Nf6 {[%clk 0:02:45]} 7. Nf3 {[%clk 0:02:55]}  d5 {[%clk 0:02:32]} 8. e5 {[%clk 0:02:38]}  Nd7 {[%clk 0:02:31]} 9. d4 {[%clk 0:02:38]}  Be7 {[%clk 0:02:29]} 10. O-O {[%clk 0:02:37]}  a5 {[%clk 0:02:26]} 11. a3 {[%clk 0:02:25]}  Ba6 {[%clk 0:02:25]} 12. Re1 {[%clk 0:02:25]}  Qb6 {[%clk 0:02:22]} 13. Bf4 {[%clk 0:02:08]}  O-O {[%clk 0:02:20]} 14. Nbd2 {[%clk 0:02:06]}  b4 {[%clk 0:02:15]} 15. axb4 {[%clk 0:02:03]}  axb4 {[%clk 0:02:11]} 16. Nf1 {[%clk 0:01:50]}  Bxf1 {[%clk 0:01:47]} 17. Rxf1 {[%clk 0:01:19]}  Rxa1 {[%clk 0:01:43]} 18. Qxa1 {[%clk 0:01:19]}  bxc3 {[%clk 0:01:44]} 19. Ba4 {[%clk 0:00:35]}  cxb2 {[%clk 0:01:43]} 20. Qb1 {[%clk 0:00:34]}  Rb8 {[%clk 0:01:39]} 21. h4 {[%clk 0:00:32]}  Nf8 {[%clk 0:01:35]} 22. h5 {[%clk 0:00:32]}  Nxd4 {[%clk 0:01:29]} 23. Nxd4 {[%clk 0:00:29]}  cxd4 {[%clk 0:01:30]} 24. Bc2 {[%clk 0:00:30]}  Ra8 {[%clk 0:01:23]} 0-1


[Site "https://www.chess.com"]

[Event "Titled Tuesday Blitz March 21 Early 2023"]
[White "Crevatin, Leo"]
[Black "Harsha Bharathakoti"]
[WhiteFideId "1726307"]
[BlackFideId "5078776"]
[WhiteElo "2190"]
[BlackElo "2481"]
[Result "1/2-1/2"]
[Round "02"]
[TimeControl "180+2"]
[Date "2023.03.21"]
[WhiteClock "0:00:10"]
[BlackClock "0:00:18"]

1. e4 {[%clk 0:03:00]}  e6 {[%clk 0:02:57]} 2. d4 {[%clk 0:03:00]}  d5 {[%clk 0:02:57]} 3. Nc3 {[%clk 0:03:00]}  Be7 {[%clk 0:02:58]} 4. Nf3 {[%clk 0:02:48]}  Nf6 {[%clk 0:02:58]} 5. exd5 {[%clk 0:02:47]}  exd5 {[%clk 0:02:58]} 6. Bd3 {[%clk 0:02:46]}  Bg4 {[%clk 0:02:45]} 7. h3 {[%clk 0:02:46]}  Bh5 {[%clk 0:02:45]} 8. Be2 {[%clk 0:02:43]}  O-O {[%clk 0:02:43]} 9. O-O {[%clk 0:02:43]}  Nbd7 {[%clk 0:02:42]} 10. Bf4 {[%clk 0:02:38]}  c6 {[%clk 0:02:42]} 11. Ne5 {[%clk 0:02:32]}  Bxe2 {[%clk 0:02:42]} 12. Nxe2 {[%clk 0:02:32]}  Nxe5 {[%clk 0:02:32]} 13. Bxe5 {[%clk 0:02:32]}  Re8 {[%clk 0:02:29]} 14. Ng3 {[%clk 0:02:28]}  Nd7 {[%clk 0:02:18]} 15. Bf4 {[%clk 0:02:26]}  Nf8 {[%clk 0:02:14]} 16. Nf5 {[%clk 0:02:15]}  Ne6 {[%clk 0:02:13]} 17. Be5 {[%clk 0:02:10]}  f6 {[%clk 0:02:02]} 18. Bg3 {[%clk 0:01:56]}  Bf8 {[%clk 0:02:00]} 19. c3 {[%clk 0:01:52]}  g6 {[%clk 0:01:59]} 20. Ne3 {[%clk 0:01:53]}  Qb6 {[%clk 0:01:55]} 21. Qc2 {[%clk 0:01:47]}  Ng5 {[%clk 0:01:51]} 22. Rfe1 {[%clk 0:01:34]}  Ne4 {[%clk 0:01:51]} 23. Bh2 {[%clk 0:01:34]}  Rad8 {[%clk 0:01:24]} 24. f3 {[%clk 0:01:19]}  Ng5 {[%clk 0:01:18]} 25. h4 {[%clk 0:01:09]}  Nf7 {[%clk 0:01:08]} 26. h5 {[%clk 0:01:09]}  f5 {[%clk 0:01:05]} 27. hxg6 {[%clk 0:01:00]}  hxg6 {[%clk 0:01:06]} 28. Bf4 {[%clk 0:00:52]}  c5 {[%clk 0:00:53]} 29. Rad1 {[%clk 0:00:40]}  cxd4 {[%clk 0:00:53]} 30. cxd4 {[%clk 0:00:41]}  Bg7 {[%clk 0:00:54]} 31. Qd2 {[%clk 0:00:38]}  Re6 {[%clk 0:00:40]} 32. b3 {[%clk 0:00:33]}  Qb5 {[%clk 0:00:35]} 33. Nc2 {[%clk 0:00:31]}  Rde8 {[%clk 0:00:34]} 34. Rxe6 {[%clk 0:00:32]}  Rxe6 {[%clk 0:00:34]} 35. Re1 {[%clk 0:00:30]}  Rxe1+ {[%clk 0:00:32]} 36. Nxe1 {[%clk 0:00:17]}  g5 {[%clk 0:00:27]} 37. Bxg5 {[%clk 0:00:14]}  Nxg5 {[%clk 0:00:21]} 38. Qxg5 {[%clk 0:00:14]}  Qe2 {[%clk 0:00:22]} 39. Qd8+ {[%clk 0:00:13]}  Kh7 {[%clk 0:00:22]} 40. Qh4+ {[%clk 0:00:13]}  Kg8 {[%clk 0:00:21]} 41. Qd8+ {[%clk 0:00:13]}  Kh7 {[%clk 0:00:21]} 42. Qh4+ {[%clk 0:00:13]}  Kg6 {[%clk 0:00:20]} 43. Qg3+ {[%clk 0:00:12]}  Kh7 {[%clk 0:00:18]} 44. Qh4+ {[%clk 0:00:10]} 1/2-1/2


[Site "https://www.chess.com"]

[Event "Titled Tuesday Blitz March 21 Early 2023"]
[White "Koellner, Ruben Gideon"]
[Black "Drygalov, Andrey"]
[WhiteFideId "12993093"]
[BlackFideId "24171735"]
[WhiteElo "2303"]
[BlackElo "2471"]
[Result "0-1"]
[Round "02"]
[TimeControl "180+2"]
[Date "2023.03.21"]
[WhiteClock "0:00:03"]
[BlackClock "0:00:18"]

1. d4 {[%clk 0:03:00]}  Nf6 {[%clk 0:03:00]} 2. Nf3 {[%clk 0:03:01]}  d5 {[%clk 0:03:00]} 3. Nbd2 {[%clk 0:03:01]}  c5 {[%clk 0:02:58]} 4. e3 {[%clk 0:03:01]}  Nc6 {[%clk 0:02:57]} 5. c3 {[%clk 0:03:02]}  g6 {[%clk 0:02:54]} 6. dxc5 {[%clk 0:03:00]}  Bg7 {[%clk 0:02:54]} 7. Bd3 {[%clk 0:03:00]}  O-O {[%clk 0:02:54]} 8. e4 {[%clk 0:03:01]}  Bg4 {[%clk 0:02:34]} 9. O-O {[%clk 0:02:22]}  dxe4 {[%clk 0:02:21]} 10. Nxe4 {[%clk 0:02:15]}  Bxf3 {[%clk 0:02:19]} 11. Nxf6+ {[%clk 0:01:59]}  Bxf6 {[%clk 0:02:15]} 12. gxf3 {[%clk 0:01:59]}  Qc7 {[%clk 0:02:16]} 13. Be3 {[%clk 0:01:56]}  Be5 {[%clk 0:02:11]} 14. h3 {[%clk 0:01:48]}  Rfd8 {[%clk 0:02:10]} 15. Qe2 {[%clk 0:01:46]}  Qd7 {[%clk 0:02:11]} 16. Be4 {[%clk 0:01:38]}  Qxh3 {[%clk 0:02:08]} 17. f4 {[%clk 0:01:38]}  Bf6 {[%clk 0:02:06]} 18. Qf3 {[%clk 0:01:37]}  Qe6 {[%clk 0:02:03]} 19. Rfd1 {[%clk 0:01:34]}  Kg7 {[%clk 0:01:15]} 20. Bd5 {[%clk 0:01:29]}  Qc8 {[%clk 0:01:15]} 21. Kg2 {[%clk 0:01:23]}  Qc7 {[%clk 0:01:09]} 22. Rh1 {[%clk 0:01:10]}  e6 {[%clk 0:01:06]} 23. Be4 {[%clk 0:01:10]}  Rab8 {[%clk 0:01:01]} 24. Qh3 {[%clk 0:00:57]}  h5 {[%clk 0:00:57]} 25. Qg3 {[%clk 0:00:55]}  Rh8 {[%clk 0:00:57]} 26. Kf3 {[%clk 0:00:51]}  Ne7 {[%clk 0:00:56]} 27. Rad1 {[%clk 0:00:44]}  Nf5 {[%clk 0:00:56]} 28. Bxf5 {[%clk 0:00:42]}  exf5 {[%clk 0:00:56]} 29. Kg2 {[%clk 0:00:43]}  Qa5 {[%clk 0:00:50]} 30. a3 {[%clk 0:00:41]}  Qb5 {[%clk 0:00:50]} 31. Rd2 {[%clk 0:00:40]}  Rbd8 {[%clk 0:00:46]} 32. Rhd1 {[%clk 0:00:40]}  Rxd2 {[%clk 0:00:41]} 33. Rxd2 {[%clk 0:00:41]}  h4 {[%clk 0:00:35]} 34. Qf3 {[%clk 0:00:40]}  h3+ {[%clk 0:00:30]} 35. Kh2 {[%clk 0:00:41]}  Qf1 {[%clk 0:00:26]} 36. Rd1 {[%clk 0:00:38]}  Qb5 {[%clk 0:00:27]} 37. Rd2 {[%clk 0:00:33]}  Rh4 {[%clk 0:00:27]} 38. Qd5 {[%clk 0:00:18]}  Rg4 {[%clk 0:00:24]} 39. Qd3 {[%clk 0:00:13]}  Qc6 {[%clk 0:00:19]} 40. Qd5 {[%clk 0:00:13]}  Qa6 {[%clk 0:00:19]} 41. Qd3 {[%clk 0:00:13]}  Qa4 {[%clk 0:00:19]} 42. Kxh3 {[%clk 0:00:10]}  Qe8 {[%clk 0:00:18]} 43. Qd8 {[%clk 0:00:02]}  Bxd8 {[%clk 0:00:17]} 44. Bd4+ {[%clk 0:00:02]}  Bf6 {[%clk 0:00:17]} 45. Bxf6+ {[%clk 0:00:02]}  Kxf6 {[%clk 0:00:18]} 46. Rd6+ {[%clk 0:00:03]}  Kg7 {[%clk 0:00:18]} 47. f3 {[%clk 0:00:03]}  Qh8# {[%clk 0:00:18]} 0-1


[Site "https://www.chess.com"]